bitfinex/quotes_SOLUSD_20240625
["timestamp","ask_amount","ask_price","bid_price","bid_amount"]
[1719293284270,106.2893,136.6,136.55,9.02]
[1719293284467,115.3093,136.6,136.55,9.02]
[1719293284674,106.2893,136.6,136.55,9.02]
[1719293284981,15.6626,136.61,136.57,9.02]
[1719293285181,6.1387,136.63,136.58,9.02]
[1719293285394,6.1387,136.63,136.59,9.02]
[1719293285686,6.1387,136.63,136.53,16.6034]
[1719293285687,15.523,136.64,136.6,9.02]
[1719293286181,15.523,136.64,136.61,9.02]
[1719293287361,6.4821,136.66,136.63,9.02]
[1719293287564,16.433,136.68,136.65,9.02]
[1719293287963,116.433,136.68,136.64,9.02]
[1719293288377,116.433,136.68,136.63,9.02]
[1719293288580,116.433,136.68,136.62,45.0]
[1719293288784,100.0,136.66,136.62,45.0]
[1719293289779,100.0,136.64,136.58,43.2235]
[1719293289989,100.0,136.66,136.59,65.0]
[1719293290170,0.17,136.67,136.59,65.0]
[1719293291483,116.433,136.68,136.59,65.0]
[1719293295075,116.433,136.68,136.6,0.17]
[1719293295273,116.433,136.68,136.59,65.0]
[1719293295871,116.433,136.68,136.59,20.0]
[1719293296083,100.0,136.66,136.59,20.0]
[1719293297390,100.0,136.66,136.6,45.0]
[1719293303996,100.0,136.66,136.59,410.4]
[1719293303997,100.0,136.64,136.59,390.4]
[1719293306673,6.621,136.65,136.59,390.4]
[1719293307280,100.0,136.64,136.59,390.4]
[1719293308278,100.0,136.64,136.6,45.0]
[1719293310278,6.621,136.65,136.6,45.0]
[1719293310700,6.621,136.65,136.6,54.01]
[1719293312482,15.631,136.65,136.6,54.01]
[1719293312887,100.0,136.64,136.56,391.7442]
[1719293313086,100.0,136.64,136.57,20.0]
[1719293313299,0.17,136.63,136.59,9.01]
[1719293313797,100.0,136.64,136.59,9.01]
[1719293314598,100.0,136.64,136.6,9.01]
[1719293316591,100.0,136.64,136.57,20.0]
[1719293316789,109.01,136.64,136.59,9.01]
[1719293317189,6.4257,136.73,136.64,15.6544]
[1719293317403,6.4257,136.73,136.65,20.0]
[1719293317701,6.4257,136.73,136.69,9.01]
[1719293317904,106.4257,136.73,136.69,9.01]
[1719293318205,6.4257,136.73,136.69,9.01]
[1719293318907,100.0,136.71,136.69,9.01]
[1719293319091,100.0,136.71,136.68,9.01]
[1719293319997,106.4257,136.73,136.68,9.01]
[1719293320697,106.4257,136.73,136.65,20.0]
[1719293320896,106.4257,136.73,136.66,45.0]
[1719293322717,100.0,136.7,136.66,45.0]
[1719293323204,100.0,136.7,136.65,390.4]
[1719293327410,100.0,136.7,136.64,15.6544]
[1719293327597,100.0,136.7,136.65,65.0]
[1719293331488,100.0,136.7,136.65,45.0]
[1719293337412,100.0,136.7,136.64,45.0]
[1719293338324,15.8467,136.71,136.64,45.0]
[1719293339327,15.8467,136.71,136.64,435.4]
[1719293340594,15.8467,136.71,136.65,0.74899707]
[1719293341006,15.8467,136.71,136.64,435.4]
[1719293341921,100.0,136.7,136.64,435.4]
[1719293342624,100.0,136.7,136.67,9.01]
[1719293349825,15.8467,136.71,136.67,9.01]
[1719293353728,15.8467,136.71,136.64,435.4]
[1719293353729,100.0,136.72,136.68,9.01]
[1719293353918,6.4257,136.73,136.68,9.01]
[1719293354532,6.4257,136.73,136.64,471.44]
[1719293354533,100.0,136.72,136.64,471.44]
[1719293354733,100.0,136.72,136.67,9.01]
[1719293355229,100.0,136.72,136.68,9.01]
[1719293355433,100.0,136.72,136.67,9.01]
[1719293358043,100.0,136.7,136.64,390.4]
[1719293358339,100.0,136.68,136.65,9.01]
[1719293358628,100.0,136.68,136.64,399.41]
[1719293360036,100.0,136.68,136.65,9.01]
[1719293360635,100.0,136.68,136.66,9.01]
[1719293361026,100.0,136.68,136.64,390.4]
[1719293361227,100.0,136.68,136.66,9.01]
[1719293361527,100.0,136.68,136.65,9.01]
[1719293366240,100.0,136.68,136.61,406.872]
[1719293366421,100.0,136.68,136.62,65.0]
[1719293366619,100.0,136.68,136.64,9.01]
[1719293371113,115.9885,136.72,136.66,9.01]
[1719293371315,115.9885,136.72,136.62,65.0]
[1719293371316,15.9885,136.72,136.67,54.01]
[1719293371627,124.9985,136.72,136.67,54.01]
[1719293372234,115.9885,136.72,136.67,54.01]
[1719293372435,124.9985,136.72,136.67,54.01]
[1719293373620,124.9985,136.72,136.67,45.0]
[1719293374141,6.4257,136.73,136.67,45.0]
[1719293374436,15.4357,136.73,136.67,45.0]
[1719293374740,215.4357,136.73,136.67,45.0]
[1719293375456,9.01,136.72,136.67,45.0]
[1719293377456,100.0,136.7,136.64,390.4]
[1719293377629,100.0,136.7,136.65,65.0]
[1719293377829,100.0,136.7,136.66,9.01]
[1719293379129,100.0,136.7,136.65,65.0]
[1719293379634,100.0,136.7,136.66,9.01]
[1719293380353,100.0,136.7,136.65,65.0]
[1719293380354,100.0,136.72,136.65,65.0]
[1719293380538,100.0,136.72,136.68,9.01]
[1719293381334,100.0,136.72,136.65,455.4]
[1719293381542,100.0,136.72,136.67,9.01]
[1719293382465,100.0,136.72,136.65,455.4]
[1719293382639,116.1926,136.75,136.67,24.5365]
[1719293382640,100.0,136.74,136.67,24.5365]
[1719293382829,16.1926,136.75,136.7,9.01]
[1719293383130,25.2026,136.75,136.7,9.01]
[1719293384537,16.1926,136.75,136.7,9.01]
[1719293385743,16.1926,136.75,136.7,9.01]
[1719293386555,25.2026,136.75,136.68,455.4]
[1719293386851,25.2026,136.75,136.7,9.01]
[1719293391834,100.0,136.73,136.68,455.4]
[1719293392142,100.0,136.73,136.68,435.4]
[1719293392348,100.0,136.71,136.68,390.4]
[1719293392649,109.01,136.71,136.68,390.4]
[1719293393240,100.0,136.71,136.68,390.4]
[1719293398858,100.0,136.69,136.68,390.4]
[1719293402067,109.01,136.69,136.68,390.4]
[1719293402262,109.18,136.69,136.68,390.4]
[1719293402879,109.35,136.69,136.68,390.4]
[1719293403046,100.0,136.65,136.58,1.3442]
[1719293403248,9.01,136.64,136.59,29.01]
[1719293403676,109.01,136.65,136.59,29.01]
[1719293403847,109.01,136.65,136.6,9.01]
[1719293404158,100.0,136.62,136.57,15.0023]
[1719293404366,9.01,136.61,136.54,16.6775]
[1719293404746,9.01,136.61,136.55,9.01]
[1719293405067,9.01,136.61,136.54,16.6775]
[1719293405235,9.01,136.61,136.55,9.01]
[1719293405737,9.01,136.61,136.54,16.6775]
[1719293405938,9.01,136.61,136.55,20.0]
[1719293406138,100.0,136.62,136.55,29.01]
[1719293406346,100.0,136.64,136.55,20.0]
[1719293406556,100.0,136.66,136.6,9.01]
[1719293406766,100.0,136.64,136.55,20.0]
[1719293406946,100.0,136.64,136.6,9.01]
[1719293407350,100.0,136.64,136.59,9.01]
[1719293407666,109.01,136.64,136.59,9.01]
[1719293410059,109.01,136.64,136.58,9.01]
[1719293410266,109.01,136.64,136.59,45.0]
[1719293410454,9.01,136.63,136.59,45.0]
[1719293410655,109.01,136.64,136.59,45.0]
[1719293411649,109.01,136.65,136.59,54.01]
[1719293412159,100.0,136.64,136.59,54.01]
[1719293413876,109.01,136.64,136.55,410.4]
[1719293414078,9.01,136.63,136.56,45.0]
[1719293414254,9.01,136.63,136.57,29.01]
[1719293414453,9.01,136.63,136.58,45.0]
[1719293414772,9.01,136.63,136.57,29.01]
[1719293414960,109.01,136.63,136.57,29.01]
[1719293415451,109.01,136.63,136.58,9.01]
[1719293415653,100.0,136.62,136.58,9.01]
[1719293416881,125.3894,136.64,136.58,9.01]
[1719293417376,125.3894,136.64,136.59,45.0]
[1719293417754,116.3794,136.64,136.59,45.0]
[1719293418171,125.3894,136.64,136.59,45.0]
[1719293420381,125.3894,136.64,136.58,9.01]
[1719293420671,16.3794,136.64,136.59,9.01]
[1719293422682,5.09053565,136.7,136.63,9.01]
[1719293422683,21.3633,136.68,136.63,9.01]
[1719293422864,21.3633,136.68,136.64,20.0]
[1719293423061,121.4181,136.72,136.66,9.01]
[1719293423262,130.4281,136.72,136.67,9.01]
[1719293423682,121.4181,136.72,136.67,9.01]
[1719293424183,130.4281,136.72,136.67,9.01]
[1719293424380,100.0,136.71,136.67,9.01]
[1719293424971,130.4281,136.72,136.67,9.01]
[1719293425177,21.4181,136.72,136.67,9.01]
[1719293425362,231.2531,136.75,136.69,9.01]
[1719293425964,222.2431,136.75,136.69,9.01]
[1719293426163,231.2531,136.75,136.69,9.01]
[1719293426364,222.2431,136.75,136.69,9.01]
[1719293426663,0.17,136.74,136.69,9.01]
[1719293427992,0.34,136.74,136.69,9.01]
[1719293428975,0.34,136.74,136.68,45.0]
[1719293429179,0.34,136.74,136.69,9.01]
[1719293429873,100.0,136.77,136.68,45.0]
[1719293430076,100.0,136.77,136.69,20.0]
[1719293430280,109.01,136.77,136.72,9.01]
[1719293430590,109.01,136.77,136.71,9.01]
[1719293430971,100.0,136.77,136.71,9.01]
[1719293431166,109.01,136.77,136.71,9.01]
[1719293431784,100.0,136.76,136.7,45.0]
[1719293431984,100.0,136.74,136.7,45.0]
[1719293432191,100.0,136.74,136.71,9.01]
[1719293432774,100.0,136.74,136.7,54.01]
[1719293435371,100.0,136.74,136.71,9.01]
[1719293435566,100.0,136.78,136.7,45.0]
[1719293435787,100.0,136.78,136.74,9.01]
[1719293436070,21.7164,136.79,136.74,9.01]
[1719293436973,21.7164,136.79,136.71,56.04]
[1719293437175,121.7164,136.79,136.72,45.0]
[1719293437879,121.7164,136.79,136.74,9.01]
[1719293438272,121.7164,136.79,136.72,45.0]
[1719293438485,121.7164,136.79,136.74,9.01]
[1719293438690,130.7264,136.79,136.74,9.01]
[1719293439391,130.7264,136.79,136.72,45.0]
[1719293439392,100.0,136.77,136.72,45.0]
[1719293439575,100.0,136.77,136.73,9.01]
[1719293440875,100.0,136.77,136.72,45.0]
[1719293441074,100.0,136.77,136.73,9.01]
[1719293441276,100.0,136.77,136.72,45.0]
[1719293441693,130.7264,136.79,136.73,9.01]
[1719293441895,121.7164,136.79,136.72,45.0]
[1719293442188,121.7164,136.79,136.74,9.01]
[1719293442393,121.7164,136.79,136.72,45.0]
[1719293442587,100.0,136.79,136.75,9.01]
[1719293443098,100.0,136.79,136.72,45.0]
[1719293443277,100.0,136.81,136.76,9.01]
[1719293444401,109.01,136.81,136.72,45.0]
[1719293444577,109.01,136.81,136.76,9.01]
[1719293444779,200.0,136.84,136.78,9.01]
[1719293445202,209.01,136.84,136.76,15.6544]
[1719293445392,9.01,136.83,136.77,20.0]
[1719293445580,9.01,136.83,136.78,9.01]
[1719293445901,209.01,136.84,136.78,9.01]
[1719293446087,200.0,136.84,136.78,9.01]
[1719293446402,209.01,136.84,136.78,9.01]
[1719293447515,200.0,136.84,136.78,9.01]
[1719293447693,209.01,136.84,136.78,9.01]
[1719293448698,200.0,136.84,136.79,9.01]
[1719293448896,9.35,136.85,136.79,9.01]
[1719293449494,9.35,136.85,136.8,9.01]
[1719293450478,9.35,136.85,136.78,1.3908181]
[1719293450683,0.17,136.85,136.8,9.01]
[1719293450888,9.18,136.85,136.8,9.01]
[1719293451498,0.17,136.85,136.8,9.01]
[1719293451700,209.01,136.86,136.8,9.01]
[1719293452807,209.01,136.86,136.77,410.4]
[1719293453004,100.0,136.86,136.81,9.01]
[1719293453302,109.01,136.86,136.81,9.01]
[1719293454311,209.01,136.86,136.81,9.01]
[1719293455813,100.0,136.83,136.77,410.4]
[1719293456027,100.0,136.83,136.79,9.01]
[1719293456516,100.0,136.83,136.8,9.01]
[1719293456804,100.0,136.83,136.77,410.4]
[1719293456805,100.0,136.83,136.79,9.01]
[1719293457694,100.0,136.83,136.8,9.01]
[1719293458415,100.0,136.83,136.77,410.4]
[1719293458607,100.0,136.83,136.8,9.01]
[1719293458916,109.01,136.85,136.8,9.01]
[1719293459202,0.17,136.84,136.8,9.01]
[1719293460301,100.0,136.83,136.8,9.01]
[1719293461406,100.0,136.83,136.77,20.0]
[1719293461808,100.0,136.83,136.79,9.01]
[1719293462120,0.17,136.84,136.79,9.01]
[1719293462946,109.01,136.85,136.79,9.01]
[1719293463616,109.01,136.85,136.8,9.01]
[1719293464828,100.0,136.85,136.8,9.01]
[1719293465546,109.01,136.85,136.8,9.01]
[1719293466131,109.01,136.85,136.77,410.4]
[1719293466432,109.01,136.85,136.79,9.01]
[1719293467031,0.34,136.86,136.8,9.01]
[1719293467242,100.0,136.87,136.82,9.01]
[1719293468117,100.0,136.87,136.78,36.04]
[1719293468312,100.0,136.87,136.79,20.0]
[1719293468537,100.0,136.87,136.82,9.01]
[1719293471137,100.0,136.87,136.83,9.01]
[1719293472021,100.0,136.87,136.84,9.01]
[1719293472224,100.0,136.87,136.8,17.9934]
[1719293472526,100.0,136.87,136.84,9.01]
[1719293475021,100.0,136.87,136.83,9.01]
[1719293475220,100.0,136.87,136.81,20.0]
[1719293475417,100.0,136.87,136.83,9.01]
[1719293478033,100.0,136.87,136.84,9.01]
[1719293478234,100.0,136.87,136.85,9.01]
[1719293478632,100.0,136.9,136.85,9.01]
[1719293478836,100.0,136.9,136.86,9.01]
[1719293479642,100.0,136.9,136.85,9.01]
[1719293480438,100.0,136.88,136.81,410.4]
[1719293480738,100.0,136.88,136.84,9.01]
[1719293480952,100.0,136.88,136.85,9.01]
[1719293482542,100.0,136.88,136.84,9.01]
[1719293482729,100.0,136.86,136.81,410.4]
[1719293482928,100.0,136.86,136.83,9.01]
[1719293483324,100.0,136.88,136.83,9.01]
[1719293483640,100.0,136.88,136.81,410.4]
[1719293483831,100.0,136.88,136.84,9.01]
[1719293487240,100.0,136.88,136.81,410.4]
[1719293487449,100.0,136.88,136.84,9.01]
[1719293488447,100.0,136.88,136.84,399.41]
[1719293489140,100.0,136.88,136.84,390.4]
[1719293489348,100.0,136.88,136.84,399.41]
[1719293489536,100.0,136.88,136.84,390.4]
[1719293492148,100.0,136.86,136.84,390.4]
[1719293492445,131.2466,136.86,136.84,390.4]
[1719293492748,9.01,136.85,136.84,390.4]
[1719293493559,131.2466,136.86,136.84,390.4]
[1719293494749,231.2466,136.86,136.84,390.4]
[1719293494960,9.01,136.85,136.84,390.4]
[1719293495137,100.0,136.82,136.76,373.7334]
[1719293495341,100.0,136.83,136.72,389.2784]
[1719293495342,100.0,136.8,136.72,389.2784]
[1719293495837,100.0,136.8,136.76,9.01]
[1719293496743,100.0,136.82,136.76,9.01]
[1719293496936,109.01,136.82,136.76,9.01]
[1719293497254,100.0,136.82,136.76,9.01]
[1719293497548,109.01,136.82,136.77,9.01]
[1719293498027,100.0,136.82,136.77,9.01]
[1719293498226,109.01,136.82,136.77,9.01]
[1719293498650,100.0,136.82,136.77,9.01]
[1719293498859,100.0,136.84,136.78,9.01]
[1719293499233,100.0,136.84,136.72,417.09134252]
[1719293499234,109.01,136.84,136.79,9.01]
[1719293499647,100.0,136.84,136.79,9.01]
[1719293500330,109.01,136.84,136.79,9.01]
[1719293500532,100.0,136.84,136.72,417.09134252]
[1719293500732,100.0,136.84,136.77,9.01]
[1719293500733,9.01,136.83,136.77,9.01]
[1719293500968,9.01,136.83,136.78,29.01]
[1719293501456,100.0,136.84,136.78,29.01]
[1719293501766,9.01,136.83,136.78,29.01]
[1719293502542,109.01,136.84,136.78,29.01]
[1719293506253,109.01,136.84,136.78,402.7434]
[1719293507239,9.01,136.83,136.78,402.7434]
[1719293508568,9.01,136.83,136.78,393.7334]
[1719293510366,100.0,136.84,136.78,373.7334]
[1719293510367,9.01,136.82,136.78,373.7334]
[1719293510565,109.01,136.81,136.78,373.7334]
[1719293511473,100.0,136.81,136.78,373.7334]
[1719293511778,100.0,136.81,136.76,382.7434]
[1719293513672,100.0,136.81,136.76,373.7334]
[1719293514148,100.0,136.81,136.76,382.7434]
[1719293515975,100.0,136.83,136.76,382.7434]
[1719293515976,200.0,136.83,136.76,382.7434]
[1719293517946,100.0,136.81,136.76,373.7334]
[1719293518347,200.0,136.81,136.76,373.7334]
[1719293518548,9.01,136.8,136.76,373.7334]
[1719293518762,9.01,136.8,136.75,382.7434]
[1719293519269,9.01,136.8,136.75,9.01]
[1719293521557,109.01,136.79,136.72,15.545]
[1719293521757,9.01,136.78,136.73,29.01]
[1719293521955,100.0,136.79,136.73,9.01]
[1719293522159,9.01,136.77,136.72,9.01]
[1719293522543,100.0,136.79,136.73,9.01]
[1719293522952,9.01,136.78,136.73,9.01]
[1719293525371,109.01,136.79,136.74,9.01]
[1719293525552,21.4184,136.81,136.76,9.01]
[1719293525750,6.5279,136.84,136.79,9.01]
[1719293526269,15.5379,136.84,136.78,9.01]
[1719293527362,100.0,136.83,136.74,16.535]
[1719293527573,109.01,136.83,136.77,9.01]
[1719293528452,109.01,136.83,136.78,9.01]
[1719293529366,100.0,136.83,136.78,9.01]
[1719293531585,100.0,136.81,136.74,16.535]
[1719293531756,100.0,136.81,136.76,9.01]
[1719293532675,100.0,136.81,136.77,9.01]
[1719293535256,100.0,136.81,136.76,9.01]
[1719293536476,109.01,136.81,136.76,9.01]
[1719293536679,100.0,136.81,136.76,9.01]
[1719293537663,109.01,136.81,136.76,9.01]
[1719293538382,109.01,136.81,136.74,373.7334]
[1719293538583,109.01,136.81,136.76,9.01]
[1719293539075,100.0,136.81,136.76,9.01]
[1719293539380,9.01,136.82,136.77,9.01]
[1719293539885,9.01,136.82,136.74,373.7334]
[1719293540189,9.01,136.82,136.77,9.01]
[1719293543663,100.0,136.83,136.77,9.01]
[1719293543862,100.0,136.83,136.74,373.7334]
[1719293543863,6.5279,136.84,136.78,9.01]
[1719293544064,15.5379,136.84,136.78,9.01]
[1719293545074,100.0,136.83,136.78,9.01]
[1719293546763,109.01,136.83,136.78,9.01]
[1719293548485,6.5279,136.84,136.78,9.01]
[1719293548688,15.5379,136.84,136.78,9.01]
[1719293550078,16.3869,136.85,136.8,9.01]
[1719293550767,25.3969,136.85,136.8,9.01]
[1719293551790,25.3969,136.85,136.76,389.6194]
[1719293552091,9.01,136.84,136.78,9.01]
[1719293552774,9.01,136.84,136.79,9.01]
[1719293553875,116.3869,136.85,136.79,9.01]
[1719293554075,125.3969,136.85,136.79,9.01]
[1719293554475,125.3969,136.85,136.8,9.01]
[1719293554661,125.3969,136.85,136.79,9.01]
[1719293555066,9.18,136.84,136.79,9.01]
[1719293555285,9.01,136.84,136.79,9.01]
[1719293556589,100.0,136.83,136.76,389.6194]
[1719293556781,209.18,136.83,136.77,9.01]
[1719293557179,200.17,136.83,136.77,9.01]
[1719293557378,209.18,136.83,136.78,9.01]
[1719293557574,200.17,136.83,136.78,9.01]
[1719293557780,209.18,136.83,136.78,9.01]
[1719293560493,109.18,136.83,136.78,9.01]
[1719293560698,16.3869,136.85,136.81,9.01]
[1719293560994,16.3869,136.85,136.8,9.01]
[1719293561414,125.3969,136.85,136.76,389.6194]
[1719293561689,225.3969,136.85,136.8,9.01]
[1719293563178,225.3969,136.85,136.79,9.01]
[1719293563781,225.3969,136.85,136.76,389.6194]
[1719293563981,225.3969,136.85,136.78,9.01]
[1719293563982,100.0,136.81,136.78,9.01]
[1719293565592,100.0,136.81,136.76,373.7334]
[1719293565593,100.0,136.81,136.79,9.01]
[1719293565785,200.0,136.83,136.79,9.01]
[1719293567786,200.0,136.83,136.78,9.01]
[1719293569289,0.17,136.84,136.79,9.01]
[1719293570084,0.17,136.84,136.8,9.01]
[1719293570604,116.3869,136.85,136.8,9.01]
[1719293570778,16.3869,136.85,136.81,9.01]
[1719293571181,16.3869,136.85,136.8,9.01]
[1719293571881,16.3869,136.85,136.76,373.7334]
[1719293572083,16.3869,136.85,136.8,9.01]
[1719293572797,16.3869,136.85,136.77,0.17]
[1719293573103,16.3869,136.85,136.8,9.01]
[1719293573307,16.3869,136.85,136.81,9.01]
[1719293573999,16.3869,136.85,136.8,9.01]
[1719293574784,100.0,136.84,136.8,9.01]
[1719293575612,100.0,136.84,136.79,9.01]
[1719293577719,100.0,136.84,136.76,373.7334]
[1719293577898,100.0,136.84,136.77,20.0]
[1719293578215,109.01,136.84,136.78,9.01]
[1719293579100,109.01,136.84,136.79,9.01]
[1719293579718,100.0,136.84,136.79,9.01]
[1719293580093,109.01,136.84,136.79,9.01]
[1719293581516,100.0,136.84,136.79,9.01]
[1719293581717,16.3869,136.85,136.8,9.01]
[1719293582298,116.3869,136.85,136.8,9.01]
[1719293583306,100.0,136.84,136.8,9.01]
[1719293584013,16.3869,136.85,136.8,9.01]
[1719293584722,16.3869,136.85,136.81,9.01]
[1719293585428,6.5024,136.87,136.78,15.2631]
[1719293585720,6.5024,136.87,136.83,9.01]
[1719293590003,115.5902,136.88,136.84,9.01]
[1719293590234,115.5902,136.88,136.83,9.01]
[1719293590424,115.5902,136.88,136.84,9.01]
[1719293592121,100.0,136.86,136.78,51.3031]
[1719293592307,100.0,136.86,136.79,20.0]
[1719293592519,100.0,136.86,136.81,9.01]
[1719293592711,6.5536,136.87,136.82,9.01]
[1719293593823,100.0,136.86,136.79,20.0]
[1719293594018,100.0,136.86,136.82,9.01]
[1719293594423,100.0,136.84,136.82,9.01]
[1719293594727,100.0,136.86,136.82,9.01]
[1719293596525,200.0,136.86,136.79,20.0]
[1719293596740,0.17,136.85,136.81,9.01]
[1719293597334,100.0,136.84,136.79,20.0]
[1719293597510,100.0,136.84,136.75,16.4066]
[1719293597705,200.0,136.84,136.76,20.0]
[1719293597913,200.0,136.84,136.79,9.01]
[1719293598939,100.0,136.84,136.8,9.01]
[1719293599148,100.0,136.84,136.76,20.0]
[1719293599310,100.0,136.84,136.81,9.01]
[1719293599631,100.0,136.84,136.76,20.0]
[1719293599924,100.0,136.84,136.81,9.01]
[1719293600229,100.0,136.84,136.8,9.01]
[1719293601011,6.3836,136.87,136.81,9.01]
[1719293601217,6.3836,136.87,136.76,41.98]
[1719293601218,6.3836,136.87,136.82,9.01]
[1719293602329,115.5902,136.88,136.83,9.01]
[1719293603934,224.6002,136.88,136.82,9.01]
[1719293604133,100.0,136.86,136.82,9.01]
[1719293607547,100.0,136.86,136.8,15.4646]
[1719293607724,100.0,136.86,136.82,9.01]
[1719293608829,15.5902,136.88,136.8,15.4646]
[1719293609142,15.5902,136.88,136.84,9.01]
[1719293610239,100.0,136.87,136.8,15.4646]
[1719293610542,100.0,136.87,136.82,9.01]
[1719293611746,100.0,136.87,136.83,9.01]
[1719293619163,100.0,136.87,136.81,20.0]
[1719293619462,109.01,136.87,136.81,9.01]
[1719293619761,109.01,136.87,136.82,9.01]
[1719293619762,100.0,136.87,136.82,9.01]
[1719293620351,109.01,136.87,136.81,9.01]
[1719293620552,100.0,136.87,136.82,9.01]
[1719293620757,109.01,136.87,136.82,9.01]
[1719293620957,100.0,136.87,136.82,9.01]
[1719293622474,200.0,136.85,136.76,20.0]
[1719293622767,200.0,136.85,136.81,9.01]
[1719293622939,200.0,136.85,136.78,36.04]
[1719293623254,200.0,136.85,136.81,9.01]
[1719293623965,200.0,136.85,136.76,20.0]
[1719293624359,200.0,136.85,136.8,9.01]
[1719293624571,200.0,136.85,136.76,20.0]
[1719293624758,200.0,136.85,136.8,9.01]
[1719293626563,209.01,136.85,136.8,9.01]
[1719293626959,209.01,136.85,136.76,393.7334]
[1719293627264,209.01,136.85,136.8,9.01]
[1719293627555,100.0,136.81,136.76,20.0]
[1719293627764,100.0,136.81,136.77,9.01]
[1719293628663,100.0,136.83,136.77,9.01]
[1719293628860,9.01,136.84,136.79,9.01]
[1719293629056,9.01,136.84,136.78,9.01]
[1719293629453,9.01,136.84,136.74,20.0]
[1719293629454,9.01,136.84,136.79,9.01]
[1719293632051,100.0,136.83,136.78,9.01]
[1719293635269,9.01,136.84,136.78,9.01]
[1719293635871,100.0,136.83,136.78,9.01]
[1719293636867,100.0,136.83,136.74,393.7334]
[1719293637072,100.0,136.81,136.74,20.0]
[1719293637378,100.0,136.81,136.77,9.01]
[1719293637558,100.0,136.81,136.76,9.01]
[1719293639472,100.0,136.81,136.73,20.0]
[1719293639677,100.0,136.81,136.76,9.01]
[1719293640074,16.6418,136.82,136.73,20.0]
[1719293640380,16.6418,136.82,136.77,9.01]
[1719293641268,16.6418,136.82,136.73,393.7334]
[1719293641580,25.6518,136.82,136.77,9.01]
[1719293642370,25.6518,136.82,136.73,393.7334]
[1719293642586,100.0,136.81,136.76,9.01]
[1719293643181,100.0,136.81,136.73,393.7334]